[Event "Marienbad Open-B1 2019"]
[Site "Marianske Lazne"]
[Date "2019.01.25"]
[Round "8"]
[White "Florstedt, Johannes"]
[Black "Kornitzky, Tino"]
[Result "1-0"]
[ECO "C45"]
[WhiteElo "2320"]
[BlackElo "2133"]
[Annotator "NA"]
[PlyCount "47"]
[EventDate "2019.01.17"]
[EventType "tourn"]
[EventCountry "CZE"]
[SourceTitle "playchess.com"]
[Source "ChessBase"]
[SourceQuality "1"]
[TimeControl "40/5400+30:1800+30"]

1. e4 {[%emt 0:00:00]} e5 {[%emt 0:00:00]} 2. Nf3 {[%emt 0:00:00]} Nc6 {[%emt 0:00:00]} 3. d4 {[%emt 0:00:00]} exd4 {[%emt 0:00:00]} 4. Nxd4 {[%emt 0:00:00]} Bc5 {[%emt 0:00:00]} 5. Nb3 {[%emt 0:00:00]} Bb4+ {[%emt 0:00:33]} 6. Bd2 {[%emt 0:06:09]} a5 {[%emt 0:08:04]} 7. a4 {[%emt 0:08:43]} Nf6 {[%emt 0:06:19]} 8. Bd3 {[%emt 0:00:13]} d5 {[%emt 0:06:50]} 9. exd5 {[%emt 0:00:12]} Qxd5 {[%emt 0:05:26]} 10. O-O {[%emt 0:00:11]} Bxd2 {[%emt 0:06:18]} 11. Qxd2 {[%emt 0:01:20]} O-O {[%emt 0:02:22]} 12. Nc3 {[%emt 0:00:07]} Qh5 {[%emt 0:06:28]} 13. Qf4 {[%emt 0:02:45]} Ne5 {[%emt 0:11:03]} 14. Be2 {[%emt 0:03:01]} Qf5 {[%emt 0:01:24]} 15. Qxf5 {[%emt 0:13:25]} Bxf5 {[%emt 0:00:22]} 16. Nd4 {[%emt 0:00:06]} Bg6 {[%emt 0:01:32]} 17. f4 {[%emt 0:02:17]} Nc6 {[%emt 0:12:45]} 18. Nxc6 {[%emt 0:00:25]} bxc6 {[%emt 0:00:23]} 19. f5 {[%emt 0:02:36]} Bh5 {[%emt 0:00:07]} 20. Bc4 {[%emt 0:08:43]} Nd5 {[%emt 0:04:03]} 21. Bxd5 {[%emt 0:08:39]} cxd5 {[%emt 0:00:32]} 22. Nxd5 {[%emt 0:00:06]} Be2 {[%emt 0:04:38]} 23. Rfe1 {[%emt 0:00:13]} Bg4 {[%emt 0:01:17]} 24. h3 {[%emt 0:00:18]} 1-0

[Event "Marienbad Open-B1 2019"]
[Site "Marianske Lazne"]
[Date "2019.01.25"]
[Round "8"]
[White "Sernecki, Franciszek"]
[Black "Jasny, Stanislav"]
[Result "1/2-1/2"]
[ECO "E97"]
[WhiteElo "2278"]
[BlackElo "2365"]
[Annotator "NA"]
[PlyCount "33"]
[EventDate "2019.01.17"]
[EventType "tourn"]
[EventCountry "CZE"]
[SourceTitle "playchess.com"]
[Source "ChessBase"]
[SourceQuality "1"]
[TimeControl "40/5400+30:1800+30"]

1. d4 {[%emt 0:00:00]} Nf6 {[%emt 0:00:00]} 2. Nf3 {[%emt 0:00:00]} g6 {[%emt 0:00:23]} 3. c4 {[%emt 0:00:00]} Bg7 {[%emt 0:00:14]} 4. Nc3 {[%emt 0:00:00]} d6 {[%emt 0:00:13]} 5. e4 {[%emt 0:00:00]} O-O {[%emt 0:00:12]} 6. Be2 {[%emt 0:00:00]} e5 {[%emt 0:00:26]} 7. dxe5 {[%emt 0:00:04]} dxe5 {[%emt 0:00:12]} 8. O-O {[%emt 0:00:05]} Nc6 {[%emt 0:03:45]} 9. Bg5 {[%emt 0:00:11]} Qxd1 {[%emt 0:08:47]} 10. Rfxd1 {[%emt 0:04:26]} Bg4 {[%emt 0:01:37]} 11. h3 {[%emt 0:16:07]} Bxf3 {[%emt 0:01:16]} 12. Bxf3 {[%emt 0:01:04]} Nd4 {[%emt 0:00:23]} 13. Nd5 {[%emt 0:01:29]} Nxd5 {[%emt 0:04:57]} 14. cxd5 {[%emt 0:00:56]} c6 {[%emt 0:20:52]} 15. dxc6 {[%emt 0:07:36]} bxc6 {[%emt 0:00:10]} 16. Be3 {[%emt 0:03:04]} Rfb8 {[%emt 0:07:33]} 17. b3 {[%emt 0:10:57]} 1/2-1/2

[Event "Marienbad Open-B1 2019"]
[Site "Marianske Lazne"]
[Date "2019.01.25"]
[Round "8"]
[White "Voinikonis, Nikita"]
[Black "Gorbatov, Alexej"]
[Result "1-0"]
[ECO "B28"]
[WhiteElo "2163"]
[BlackElo "2389"]
[Annotator "NA"]
[PlyCount "67"]
[EventDate "2019.01.17"]
[EventType "tourn"]
[EventCountry "CZE"]
[SourceTitle "playchess.com"]
[Source "ChessBase"]
[SourceQuality "1"]
[TimeControl "40/5400+30:1800+30"]

1. e4 {[%emt 0:01:07]} c5 {[%emt 0:02:26]} 2. Nf3 {[%emt 0:00:11]} a6 {[%emt 0:00:24]} 3. c4 {[%emt 0:00:19]} Nc6 {[%emt 0:00:09]} 4. d4 {[%emt 0:00:17]} cxd4 {[%emt 0:00:06]} 5. Nxd4 {[%emt 0:00:02]} Nf6 {[%emt 0:00:08]} 6. Nc3 {[%emt 0:00:12]} e5 {[%emt 0:00:06]} 7. Nf5 {[%emt 0:06:20]} d5 {[%emt 0:00:23]} 8. cxd5 {[%emt 0:08:45]} Bxf5 {[%emt 0:00:25]} 9. exf5 {[%emt 0:07:28]} Nd4 {[%emt 0:00:05]} 10. Bd3 {[%emt 0:01:44]} Be7 {[%emt 0:02:07]} 11. O-O {[%emt 0:00:46]} O-O {[%emt 0:00:15]} 12. Re1 {[%emt 0:02:29]} Nxd5 {[%emt 0:01:30]} 13. Be4 {[%emt 0:07:36]} Nxc3 {[%emt 0:04:47]} 14. bxc3 {[%emt 0:00:04]} Nc6 {[%emt 0:01:50]} 15. Be3 {[%emt 0:00:40]} Rc8 {[%emt 0:15:14]} 16. Qh5 {[%emt 0:06:59]} Bf6 {[%emt 0:24:24]} 17. g4 {[%emt 0:13:29]} g6 {[%emt 0:02:40]} 18. Qh6 {[%emt 0:00:08]} Bg7 {[%emt 0:00:59]} 19. Qh3 {[%emt 0:01:00]} Ne7 {[%emt 0:04:14]} 20. Rad1 {[%emt 0:14:58]} Qc7 {[%emt 0:03:19]} 21. Qf3 {[%emt 0:00:24]} gxf5 {[%emt 0:02:41]} 22. gxf5 {[%emt 0:00:06]} Bf6 {[%emt 0:00:02]} 23. Kh1 {[%emt 0:11:33]} Kh8 {[%emt 0:04:35]} 24. Qh5 {[%emt 0:00:45]} Qc4 {[%emt 0:05:44]} 25. Bh6 {[%emt 0:11:12]} Rfd8 {[%emt 0:01:32]} 26. Bg5 {[%emt 0:03:21]} Ng8 {[%emt 0:00:17]} 27. Bxf6+ {[%emt 0:00:52]} Nxf6 {[%emt 0:00:02]} 28. Qh4 {[%emt 0:00:39]} Kg7 {[%emt 0:11:59]} 29. Rxd8 {[%emt 0:00:29]} Rxd8 {[%emt 0:01:05]} 30. Qg5+ {[%emt 0:00:05]} Kf8 {[%emt 0:00:10]} 31. Qxf6 {[%emt 0:00:06]} Rd1 {[%emt 0:00:09]} 32. Qh8+ {[%emt 0:00:06]} Ke7 {[%emt 0:00:02]} 33. Qxe5+ {[%emt 0:00:03]} Kf8 {[%emt 0:00:07]} 34. Rxd1 {[%emt 0:00:08]} 1-0

[Event "Marienbad Open-B1 2019"]
[Site "Marianske Lazne"]
[Date "2019.01.25"]
[Round "8"]
[White "Patil, Mitali"]
[Black "Baum, Jonasz"]
[Result "0-1"]
[ECO "B50"]
[WhiteElo "2062"]
[BlackElo "2302"]
[Annotator "NA"]
[PlyCount "80"]
[EventDate "2019.01.17"]
[EventType "tourn"]
[EventCountry "CZE"]
[SourceTitle "playchess.com"]
[Source "ChessBase"]
[SourceQuality "1"]
[TimeControl "40/5400+30:1800+30"]

1. e4 {[%emt 0:00:00]} c5 {[%emt 0:00:00]} 2. Nf3 {[%emt 0:00:00]} d6 {[%emt 0:00:00]} 3. c3 {[%emt 0:00:09]} Nf6 {[%emt 0:00:17]} 4. h3 {[%emt 0:00:17]} e6 {[%emt 0:04:54]} 5. Bd3 {[%emt 0:05:08]} Nbd7 {[%emt 0:07:24]} 6. Bc2 {[%emt 0:02:09]} b6 {[%emt 0:02:37]} 7. O-O {[%emt 0:00:42]} Qc7 {[%emt 0:05:38]} 8. d4 {[%emt 0:01:50]} Be7 {[%emt 0:01:02]} 9. Re1 {[%emt 0:05:05]} e5 {[%emt 0:03:10]} 10. dxe5 {[%emt 0:11:47]} dxe5 {[%emt 0:02:28]} 11. Nbd2 {[%emt 0:00:44]} Bb7 {[%emt 0:02:41]} 12. Nf1 {[%emt 0:00:24]} O-O-O {[%emt 0:06:09]} 13. Qe2 {[%emt 0:08:14]} Ne8 {[%emt 0:12:37]} 14. Bb3 {[%emt 0:12:27]} Nd6 {[%emt 0:02:16]} 15. Bd5 {[%emt 0:00:40]} Bxd5 {[%emt 0:03:03]} 16. exd5 {[%emt 0:00:03]} e4 {[%emt 0:02:00]} 17. Ng5 {[%emt 0:03:35]} Bxg5 {[%emt 0:05:44]} 18. Bxg5 {[%emt 0:00:01]} Rde8 {[%emt 0:00:23]} 19. Nd2 {[%emt 0:10:51]} f5 {[%emt 0:03:53]} 20. f3 {[%emt 0:08:11]} Nf7 {[%emt 0:05:15]} 21. Qe3 {[%emt 0:12:17]} exf3 {[%emt 0:09:26]} 22. Qxe8+ {[%emt 0:00:01]} Rxe8 {[%emt 0:00:01]} 23. Rxe8+ {[%emt 0:00:01]} Kb7 {[%emt 0:00:15]} 24. Nxf3 {[%emt 0:00:09]} Nxg5 {[%emt 0:03:48]} 25. Nxg5 {[%emt 0:00:02]} Nf6 {[%emt 0:00:33]} 26. Ne6 {[%emt 0:12:21]} Qg3 {[%emt 0:00:50]} 27. Re7+ {[%emt 0:00:52]} Ka6 {[%emt 0:05:44]} 28. Rd1 {[%emt 0:03:53]} Ne4 {[%emt 0:01:55]} 29. Rxg7 {[%emt 0:01:17]} Qe3+ {[%emt 0:03:57]} 30. Kh2 {[%emt 0:00:24]} Qe2 {[%emt 0:00:17]} 31. d6 {[%emt 0:01:10]} Nxd6 {[%emt 0:05:26]} 32. Rd7 {[%emt 0:00:38]} Qxd1 {[%emt 0:00:28]} 33. b4 {[%emt 0:00:02]} Kb5 {[%emt 0:01:05]} 34. bxc5 {[%emt 0:00:43]} bxc5 {[%emt 0:00:12]} 35. a4+ {[%emt 0:00:33]} Kxa4 {[%emt 0:01:06]} 36. Nxc5+ {[%emt 0:00:06]} Kb5 {[%emt 0:00:26]} 37. Nb7 {[%emt 0:00:06]} Kc6 {[%emt 0:00:33]} 38. Rxd6+ {[%emt 0:00:22]} Qxd6+ {[%emt 0:00:05]} 39. Nxd6 {[%emt 0:00:04]} Kxd6 {[%emt 0:00:04]} 40. Kg3 {[%emt 0:00:07]} a5 {[%emt 0:00:06]} 0-1

[Event "Marienbad Open-B1 2019"]
[Site "Marianske Lazne"]
[Date "2019.01.26"]
[Round "9"]
[White "Gorbatov, Alexej"]
[Black "Mica, Marek"]
[Result "1/2-1/2"]
[ECO "A00"]
[WhiteElo "2389"]
[BlackElo "2212"]
[Annotator "NA"]
[PlyCount "125"]
[EventDate "2019.01.17"]
[EventType "tourn"]
[EventCountry "CZE"]
[SourceTitle "playchess.com"]
[Source "ChessBase"]
[SourceQuality "1"]
[TimeControl "40/5400+30:1800+30"]

{[%evp 8,124,-26,-20,-18,-45,-24,-47,-17,32767,-18,-3,32767,32767,0,-17,32767,32767,32767,-71,32767,32767,-29,32767,-4,-29,-21,32767,32767,32767,0,0,32767,0,32767,32767,6,-1,0,-20,32767,32767,32767,-52,-4,-49,32767,0,0,0,14,8,33,32767,27,35,41,21,32767,32767,32767,32767,0,32767,32767,2,32767,0,32767,32767,32767,219,197,225,32767,32767,32767,32767,32767,32767,6,10,32767,0,0,32767,6,8,32767,32767,32767,32767,32767,32767,32767,32767,0,32767,0,0,32767,32767,0,0,0,0,32767,0,0,0,32767,0,0,32767,0,0,32767,32767,0]} 1. Nh3 {[%emt 0:06:27]} Nf6 {[%emt 0:00:21]} 2. g3 {[%emt 0:02:27]} d5 {[%emt 0:01:04]} 3. d4 {[%emt 0:00:36]} e6 {[%emt 0:05:25]} 4. Bg2 {[%emt 0:00:24]} c5 {[%emt 0:00:59]} 5. dxc5 {[%emt 0:03:11]} Bxc5 {[%emt 0:00:09]} 6. Nf4 {[%emt 0:00:24]} Nc6 {[%emt 0:02:57]} 7. a3 {[%emt 0:02:42]} a5 {[%emt 0:02:02]} 8. Nc3 {[%emt 0:05:03]} O-O {[%emt 0:05:49]} 9. O-O {[%emt 0:02:23]} Qe7 {[%emt 0:09:15]} 10. Nd3 {[%emt 0:10:49]} Bb6 {[%emt 0:02:29]} 11. Rb1 {[%emt 0:11:09]} Rd8 {[%emt 0:02:07]} 12. b4 {[%emt 0:00:46]} axb4 {[%emt 0:00:44]} 13. axb4 {[%emt 0:00:16]} Bd7 {[%emt 0:07:21]} 14. e4 {[%emt 0:05:42]} Bd4 {[%emt 0:05:54]} 15. exd5 {[%emt 0:04:26]} Bxc3 {[%emt 0:02:17]} 16. dxc6 {[%emt 0:00:10]} Bxc6 {[%emt 0:00:07]} 17. Bxc6 {[%emt 0:03:30]} bxc6 {[%emt 0:00:08]} 18. Rb3 {[%emt 0:01:35]} Nd5 {[%emt 0:01:20]} (18... Bxb4 $5 19. Qf3 (19. Rxb4 Rxd3 {[%mdl 64] Remove Defender} 20. Qxd3 Qxb4 $15) 19... c5 $15) 19. Bd2 {[%emt 0:01:56]} Ra1 {[%emt 0:04:51]} 20. Qe2 {[%emt 0:00:10]} Rxf1+ {[%emt 0:00:10]} 21. Kxf1 {[%emt 0:00:03]} Bxd2 {[%emt 0:01:02]} 22. Qxd2 {[%emt 0:00:02]} e5 {[%emt 0:00:29]} 23. Qe1 {[%emt 0:07:31]} e4 {[%emt 0:03:40]} 24. Nc5 {[%emt 0:00:10]} f5 {[%emt 0:00:24]} 25. Kg2 {[%emt 0:10:53]} Nb6 {[%emt 0:08:50]} 26. Qe2 {[%emt 0:01:41]} Ra8 {[%emt 0:08:19]} 27. f3 {[%emt 0:04:23]} exf3+ {[%emt 0:01:45]} 28. Kxf3 {[%emt 0:00:14]} Qxe2+ {[%emt 0:11:21]} 29. Kxe2 {[%emt 0:00:02]} Re8+ {[%emt 0:00:24]} 30. Kf3 {[%emt 0:05:10]} Nc4 {[%emt 0:03:02]} 31. Rc3 {[%emt 0:02:27]} Nd2+ {[%emt 0:01:58]} 32. Kf4 {[%emt 0:00:20]} g6 {[%emt 0:01:22]} 33. h4 {[%emt 0:02:56]} Kf7 {[%emt 0:01:47]} 34. Rd3 {[%emt 0:00:26]} Ne4 {[%emt 0:02:32]} 35. Nd7 {[%emt 0:05:15]} Ke6 {[%emt 0:03:55]} 36. Ne5 {[%emt 0:01:04]} c5 {[%emt 0:00:59]} 37. b5 {[%emt 0:00:47]} Rb8 {[%emt 0:00:36]} 38. c4 {[%emt 0:00:26]} Nd6 {[%emt 0:00:09]} 39. Re3 {[%emt 0:00:27]} Ne4 {[%emt 0:00:12]} 40. Ra3 {[%emt 0:00:41]} Nd6 {[%emt 0:01:11]} 41. Ra6 {[%emt 0:30:15]} Rc8 {[%emt 0:30:28]} 42. Nf7 {[%emt 0:00:58]} Kxf7 {[%emt 0:00:15]} 43. Rxd6 {[%emt 0:00:02]} Re8 $1 {[%emt 0:00:31]} 44. Kg5 {[%emt 0:00:00]} Re4 {[%emt 0:00:00]} 45. Rd7+ {[%emt 0:00:00]} Ke6 {[%emt 0:00:00]} 46. Rxh7 {[%emt 0:00:00]} Rxc4 {[%emt 0:00:00]} 47. b6 {[%emt 0:00:00]} Rg4+ {[%emt 0:00:00]} 48. Kh6 {[%emt 0:00:00]} Rxg3 {[%emt 0:00:00]} 49. b7 {[%emt 0:00:00]} Rb3 {[%emt 0:00:00]} 50. Kxg6 {[%emt 0:00:00]} f4 {[%emt 0:00:00]} 51. Rc7 {[%emt 0:00:00]} Kd6 {[%emt 0:00:00]} 52. Rf7 {[%emt 0:00:00]} Kc6 {[%emt 0:00:00]} 53. h5 {[%emt 0:00:00]} Rxb7 {[%emt 0:00:00]} 54. Rxf4 {[%emt 0:00:00]} Kd5 {[%emt 0:00:00]} 55. h6 {[%emt 0:00:00]} c4 {[%emt 0:00:00]} 56. Rh4 {[%emt 0:00:00]} c3 {[%emt 0:00:00]} 57. h7 {[%emt 0:00:00]} Rxh7 {[%emt 0:00:00]} 58. Rxh7 {[%emt 0:00:00]} Kd4 {[%emt 0:00:00]} 59. Kf5 {[%emt 0:00:00]} c2 {[%emt 0:00:00]} 60. Rc7 {[%emt 0:00:00]} Kd3 {[%emt 0:00:00]} 61. Kf4 {[%emt 0:00:00]} Kd2 {[%emt 0:00:00]} 62. Rd7+ {[%emt 0:00:00]} Ke2 $11 {[%emt 0:00:00]} 63. Ke4 1/2-1/2

[Event "Marienbad Open-B1 2019"]
[Site "Marianske Lazne"]
[Date "2019.01.26"]
[Round "9"]
[White "Jasny, Stanislav"]
[Black "Voinikonis, Nikita"]
[Result "1/2-1/2"]
[ECO "C42"]
[WhiteElo "2365"]
[BlackElo "2163"]
[Annotator "NA"]
[PlyCount "66"]
[EventDate "2019.01.17"]
[EventType "tourn"]
[EventCountry "CZE"]
[SourceTitle "playchess.com"]
[Source "ChessBase"]
[SourceQuality "1"]
[TimeControl "40/5400+30:1800+30"]

{[%evp 8,62,41,32767,32767,32767,32767,32767,26,25,25,17,27,-26,-2,-22,0,11,11,32767,12,0,0,0,22,14,22,32767,32767,0,32767,32767,11,8,32767,32767,-43,-44,32767,32767,32767,32767,32767,32767,32767,32767,-50,32767,-51,-58,-45,-68,-58,32767,-70,32767,0]} 1. e4 {[%emt 0:00:00]} e5 {[%emt 0:00:00]} 2. Nf3 {[%emt 0:00:00]} Nf6 {[%emt 0:00:01]} 3. Nxe5 {[%emt 0:04:42]} d6 {[%emt 0:01:48]} 4. Nf3 {[%emt 0:00:06]} Nxe4 {[%emt 0:00:04]} 5. Qe2 {[%emt 0:01:49]} Qe7 {[%emt 0:00:07]} 6. d3 {[%emt 0:00:06]} Nf6 {[%emt 0:00:04]} 7. Bg5 {[%emt 0:00:06]} Nbd7 {[%emt 0:06:16]} 8. Nc3 {[%emt 0:02:52]} Qxe2+ {[%emt 0:00:14]} 9. Bxe2 {[%emt 0:00:13]} h6 {[%emt 0:00:04]} 10. Bh4 {[%emt 0:08:45]} ({Better is} 10. Bd2 $14) 10... g5 {[%emt 0:07:54]} 11. Bg3 {[%emt 0:00:53]} Nh5 {[%emt 0:00:06]} 12. Nd5 {[%emt 0:04:38]} Kd8 $1 {[%emt 0:04:06] LiveBook: 3 Games C42: Petroff Defence: 3 Nxe5 and unusual White 3rd moves} 13. Ne5 {[%emt 0:06:35]} (13. h4 g4 14. Nd2 Nb6 15. Nf4 Nxg3 16. fxg3 Bg7 17. O-O-O Re8 18. Rde1 Bd4 19. Rhf1 Be3 20. Nh5 {½-½ (45) Reinderman,D (2542)-Kasimdzhanov,R (2595) Wijk aan Zee 1999}) 13... dxe5 {[%emt 0:01:14]} 14. Bxh5 {[%emt 0:00:14]} f5 {[%emt 0:00:44]} 15. f3 {[%emt 0:05:34]} c6 {[%emt 0:28:48]} 16. Nc3 {[%emt 0:00:07]} Bc5 $146 {[%emt 0:00:15]} ({Predecessor:} 16... Bg7 17. O-O-O f4 18. Bf2 Ke7 19. Rhe1 c5 20. Bg6 {1-0 (47) Pavlovic,R (2146)-Rajcevic,S (2176) Belgrade 2008}) 17. Bf7 {[%emt 0:08:15]} Ke7 {[%emt 0:05:46]} 18. Bb3 {[%emt 0:03:08]} h5 {[%emt 0:04:10]} 19. Bf2 {[%emt 0:09:25]} Bxf2+ {[%emt 0:07:01]} 20. Kxf2 {[%emt 0:00:07]} Nc5 {[%emt 0:00:02]} 21. Na4 {[%emt 0:10:28]} Nxa4 {[%emt 0:01:45]} 22. Bxa4 {[%emt 0:00:05]} a5 {[%emt 0:00:07]} 23. c3 {[%emt 0:00:10]} Be6 {[%emt 0:01:27]} 24. Bb3 {[%emt 0:00:58]} Rhd8 {[%emt 0:06:49]} 25. Bxe6 {[%emt 0:00:52]} Kxe6 {[%emt 0:00:05]} 26. Ke3 {[%emt 0:00:11]} a4 {[%emt 0:02:13]} 27. Rad1 {[%emt 0:13:19]} h4 {[%emt 0:04:24]} 28. Rd2 {[%emt 0:05:09]} Ra5 {[%emt 0:01:24]} 29. Rhd1 {[%emt 0:01:10]} Rb5 {[%emt 0:02:39]} 30. Re2 {[%emt 0:03:14]} Rbd5 {[%emt 0:00:23]} 31. Red2 {[%emt 0:02:12]} Rb5 $11 {[%emt 0:00:03]} (31... f4+ $17 32. Ke2 R5d7) 32. Rc1 {[%emt 0:01:01]} Rbd5 {[%emt 0:01:47]} 33. Rcd1 {[%emt 0:08:14]} b6 1/2-1/2

[Event "Marienbad Open-B1 2019"]
[Site "Marianske Lazne"]
[Date "2019.01.26"]
[Round "9"]
[White "Baum, Jonasz"]
[Black "Florstedt, Johannes"]
[Result "0-1"]
[ECO "D70"]
[WhiteElo "2302"]
[BlackElo "2320"]
[Annotator "NA"]
[PlyCount "56"]
[EventDate "2019.01.17"]
[EventType "tourn"]
[EventCountry "CZE"]
[SourceTitle "playchess.com"]
[Source "ChessBase"]
[SourceQuality "1"]
[TimeControl "40/5400+30:1800+30"]

1. d4 {[%emt 0:00:00]} Nf6 {[%emt 0:01:18]} 2. c4 {[%emt 0:00:00]} g6 {[%emt 0:00:07]} 3. Nf3 {[%emt 0:00:00]} Bg7 {[%emt 0:00:05]} 4. g3 {[%emt 0:00:00]} O-O {[%emt 0:00:37]} 5. Bg2 {[%emt 0:00:00]} c6 {[%emt 0:00:22]} 6. O-O {[%emt 0:00:16]} d5 {[%emt 0:00:02]} 7. Nbd2 {[%emt 0:02:42]} Bf5 {[%emt 0:00:25]} 8. b3 {[%emt 0:00:18]} Ne4 {[%emt 0:01:23]} 9. Bb2 {[%emt 0:00:09]} Qa5 {[%emt 0:00:08]} 10. a3 {[%emt 0:06:23]} Nd7 {[%emt 0:00:11] D78: Fianchetto Grünfeld: 6 0-0 c6} 11. b4 {[%emt 0:00:44] LiveBook: 20 Games} Qa6 {[%emt 0:00:17]} 12. Nxe4 $146 {[%emt 0:11:06]} ({Predecessor:} 12. Rc1 Nb6 13. c5 Na4 14. Ba1 Qb5 15. Nb3 b6 16. e3 a5 17. Re1 bxc5 18. bxc5 {0-1 (30) Ladva,O (2498)-Shirov,A (2637) Viljandi 2018}) 12... Bxe4 {[%emt 0:00:42]} 13. c5 {[%emt 0:01:39]} b6 {[%emt 0:09:27]} 14. Bh3 {[%emt 0:01:13]} Bxf3 {[%emt 0:15:43]} 15. exf3 {[%emt 0:00:35]} e6 {[%emt 0:00:18]} 16. Qd2 {[%emt 0:04:54]} bxc5 {[%emt 0:01:41]} 17. bxc5 {[%emt 0:08:42]} Rab8 {[%emt 0:00:13]} 18. Rfb1 {[%emt 0:07:57]} Qa4 {[%emt 0:04:42]} 19. Bc3 {[%emt 0:06:43]} Rxb1+ {[%emt 0:01:28]} 20. Rxb1 {[%emt 0:00:01]} Qxa3 {[%emt 0:00:17]} 21. Ra1 {[%emt 0:05:50]} Qb3 {[%emt 0:00:11]} 22. Rxa7 {[%emt 0:03:13]} Nxc5 {[%emt 0:01:54]} 23. Bb4 {[%emt 0:04:55]} (23. Bf1 $17 {keeps fighting.} Qb6 24. Qa2) 23... Qb1+ {[%emt 0:00:32]} 24. Kg2 {[%emt 0:15:00]} Nd3 {[%emt 0:01:29]} 25. Bc3 $2 {[%emt 0:00:20]} (25. Bxf8 Bxf8 26. Qa2) 25... Bxd4 {[%emt 0:02:32]} 26. Bxe6 $19 {[%emt 0:03:36]} (26. Ra1 Bxc3 27. Qxc3) 26... Bxa7 {[%emt 0:00:34]} 27. Bf5 {[%emt 0:01:53]} Ne1+ {[%emt 0:00:17]} 28. Qxe1 {[%emt 0:00:41]} Qxe1 {[%emt 0:00:07]} 0-1

[Event "Marienbad Open-B1 2019"]
[Site "Marianske Lazne"]
[Date "2019.01.26"]
[Round "9"]
[White "Kornitzky, Tino"]
[Black "Sernecki, Franciszek"]
[Result "1/2-1/2"]
[ECO "E04"]
[WhiteElo "2133"]
[BlackElo "2278"]
[Annotator "NA"]
[PlyCount "45"]
[EventDate "2019.01.17"]
[EventType "tourn"]
[EventCountry "CZE"]
[SourceTitle "playchess.com"]
[Source "ChessBase"]
[SourceQuality "1"]
[TimeControl "40/5400+30:1800+30"]

1. d4 {[%emt 0:00:00]} d5 {[%emt 0:00:00]} 2. c4 {[%emt 0:00:00]} e6 {[%emt 0:00:00]} 3. g3 {[%emt 0:00:00]} Nf6 {[%emt 0:00:00]} 4. Bg2 {[%emt 0:00:00]} dxc4 {[%emt 0:00:12]} 5. Nf3 {[%emt 0:00:00]} c5 {[%emt 0:00:03]} 6. O-O {[%emt 0:00:03]} Nc6 {[%emt 0:00:04]} 7. Qa4 {[%emt 0:00:12]} Bd7 {[%emt 0:00:04]} 8. Qxc4 {[%emt 0:00:07]} cxd4 {[%emt 0:00:03]} 9. Nxd4 {[%emt 0:00:10]} Rc8 {[%emt 0:00:01]} 10. Nc3 {[%emt 0:00:26]} Nxd4 {[%emt 0:00:03]} 11. Qxd4 {[%emt 0:00:08]} Bc5 {[%emt 0:00:02]} 12. Qh4 {[%emt 0:02:30]} h6 {[%emt 0:00:12] E04: Open Catalan: 5 Nf3} 13. Bxb7 {[%emt 0:02:38]} Rb8 {[%emt 0:00:38]} 14. Bf3 {[%emt 0:00:48]} (14. Ne4 Be7 15. Ba6 O-O 16. Rd1 Nd5 17. Qh5 Bc6 18. Bc4 Qc8 19. b3 f5 20. Nd2 {1-0 (64) Ding,L (2816)-Wojtaszek,R (2749) Shenzhen 2018}) 14... Rb4 {[%emt 0:00:50]} 15. Qh3 {[%emt 0:02:58]} e5 {[%emt 0:05:34]} 16. Qg2 {[%emt 0:01:03]} Qc8 {[%emt 0:04:00] LiveBook: 3 Games} 17. Rd1 {[%emt 0:04:56]} O-O {[%emt 0:20:44]} 18. a3 {[%emt 0:05:23]} Bh3 $146 {[%emt 0:18:41]} ({Predecessor:} 18... Rb6 19. e3 Bh3 20. Qh1 {0-1 (31) Vantika,A (1842)-Azimova,K (2063) Pune 2014}) 19. Qh1 {[%emt 0:02:57]} Rb3 {[%emt 0:04:30]} 20. Ne4 {[%emt 0:13:23]} Nxe4 {[%emt 0:11:51]} 21. Bxe4 {[%emt 0:00:09]} Bd4 {[%emt 0:08:44]} (21... Qg4 $5 {[%cal Rg4e2]} 22. Bf3 Qc4 $15) 22. Bd3 {[%emt 0:22:26]} Qg4 {[%emt 0:07:39]} (22... Kh8 $11) 23. Qe4 $14 {[%emt 0:06:54]} 1/2-1/2